Cogmind - Beta 15 @@@ ROGUE MODE // 2025.05.15 @ 21:31:45 Player: jumpy Result: Destroyed by DAS Turret with DAS Cannon Performance ------------- Evolutions (0) 0 Regions Visited (3) 600 Robots Destroyed (21) 105 Value Destroyed (321) 321 Prototype IDs (24) 480 Alien Tech Used (0) 0 Bonus (225) 225 TOTAL SCORE: 1731 Bonus ------- Aligned with FarCom 300 Friendly Fire -75 Cogmind --------- Core Integrity 0/250 Matter 98/300 Energy 100/100 System Corruption 5% Temperature Cool (0) Movement Core (50) Location -10/Exiles Parts ------- > --- POWER (1) -------- (None) > --- PROPULSION (2) --- (None) > --- UTILITY (2) ------ EX Chip 1 EX Chip 1 > --- WEAPON (2) ------- (None) > --- INVENTORY (5) ---- Wheel Improved Terrain Scanner Terrain Scan Processor EX Chip 2 Light Assault Rifle Peak State ------------ > --- POWER ------------ Light Ion Engine > --- PROPULSION ------- Aluminum Leg Aluminum Leg > --- UTILITY ---------- Medium Storage Unit Sensor Drone Bay > --- WEAPON ----------- Rocket Launcher Field Lobotomy Kit > --- INVENTORY -------- Wheel Wheel Sensor Array Improved Terrain Scanner Terrain Scan Processor Seismic Detector Assault Rifle Light Assault Rifle Mining Laser [Rating: 25] Favorites ----------- Power Ion Engine Engine Ion Engine Propulsion Light Treads Treads Light Treads Leg Aluminum Leg Utility Small Storage Unit Device Seismic Detector Storage Small Storage Unit Hackware EX Chip 1 Weapon Assault Rifle Ballistic Gun Assault Rifle Launcher Rocket Launcher Special Weapon Field Lobotomy Kit Build | -11 -10 -10 -10 ------- Run | Yrd Mat Min Exi Slots Evolved . | . . . . Power . | . . . . Propulsion . | . . . . Utility . | . . . . Weapon . | . . . . Parts Attached 21 | 7 1 9 4 Power 3 | 1 . 2 . Engine 3 | 1 . 2 . Core . | . . . . Reactor . | . . . . Propulsion 6 | 2 . 4 . Treads 2 | 2 . . . Leg 4 | . . 4 . Wheel . | . . . . Hover . | . . . . Flight . | . . . . Utility 7 | 2 . 2 3 Device 3 | 1 . 2 . Storage 2 | 1 . . 1 Processor . | . . . . Hackware 2 | . . . 2 Protection . | . . . . Artifact . | . . . . Weapon 5 | 2 1 1 1 Energy Gun . | . . . . Energy Cannon . | . . . . Ballistic Gun 3 | 2 1 . . Ballistic Cannon . | . . . . Launcher 1 | . . 1 . Special Weapon 1 | . . . 1 Impact Weapon . | . . . . Slashing Weapon . | . . . . Piercing Weapon . | . . . . Special Melee Weapon . | . . . . Unidentified Prototypes 1 | . . 1 . Parts Lost 7 | . . 3 4 Power 2 | . . 1 1 Propulsion 1 | . . . 1 Utility 1 | . . 1 . Weapon 3 | . . 1 2 Highest Loss Streak 4 | . . 2 4 To Critical Strikes . | . . . . Average Backups 7 | 4 7 7 8 Power . | . 1 . . Propulsion 1 | 1 2 2 1 Utility 3 | . 3 4 4 Weapon 1 | . 1 1 2 Tool/Special . | . . . . Unused Backups 11 | 2 . 1 8 Power . | . . . . Propulsion 4 | 2 . . 2 Utility 5 | . . 1 4 Weapon 2 | . . . 2 Tool/Special . | . . . . Average Slot Usage (%) 97 | . 100 98 95 Engine 13 | . 14 13 13 Treads 16 | . 28 21 . Leg 11 | . . 6 26 Device 12 | . 14 12 13 Storage 13 | . 14 14 13 Ballistic Gun 22 | . 28 25 12 Launcher 5 | . . 2 13 Peak Build Rating 25 | 8 8 16 25 Average Rating 10 | 5 8 8 16 On Entrance 8 | . 8 8 16 Naked Turns . | . . . . Heaviest Build 39 | 14 15 28 39 Greatest Support 40 | 40 40 40 20 Greatest Overweight (x) 5 | . . 1 5 Average Overweight (x) . | . . . . Largest Inventory Capacity 10 | 8 8 8 10 Average Capacity 8 | 6 8 8 9 Most Carried 10 | 7 8 8 10 Average Carried 7 | 4 7 7 8 Final Capacity 8 | 8 8 8 5 Final Carried 8 | 7 8 8 5 Class Distribution -------------------- 96% | Mutant 3% | Scavenger-Mutant Dominant Class ---------------- Mutant | -10/Materials Mutant | -10/Mines Mutant | -10/Exiles Resources | -11 -10 -10 -10 ----------- Run | Yrd Mat Min Exi Matter Collected 535 | 300 . 229 6 Remotely . | . . . . Salvage Created 553 | 153 56 338 6 Parts 53 | 16 1 29 7 Haulers Intercepted 1 | . 1 . . Recyclers Shooed . | . . . . Parts Field Recycled . | . . . . Retrieved Matter . | . . . . Parts Self-Destructed . | . . . . Prevented . | . . . . Kills | -11 -10 -10 -10 ------- Run | Yrd Mat Min Exi Combat Hostiles Destroyed 14 | . . 14 . Guns 11 | . . 11 . AOE 3 | . . 3 . Classes Destroyed 6 | 2 1 2 1 Tunneler 4 | 3 . 1 . Hauler 1 | . 1 . . Recycler 1 | 1 . . . Drone 2 | . . . 2 Swarmer 8 | . . 8 . Grunt 6 | . . 6 . Best Kill Streak 3 | 2 1 3 1 Combat Bots Only 3 | . . 3 . Max Kills in Single Turn 3 | 1 1 3 2 Gunslinging 1 | . . 1 . Exploded 3 | . . 3 . Melee . | . . . . Uniques/NPCs Destroyed 1 | . . . 1 EX-BIN (-10/Exiles) Combat | -11 -10 -10 -10 -------- Run | Yrd Mat Min Exi Hostile Shots Fired 137 | . 18 79 40 Missed 40 | . 7 19 14 Hits 97 | . 11 60 26 Melee 4 | . . . 4 Projectile 93 | . 11 60 22 Critical Strikes 3 | . . 1 2 Part Disruptions 2 | . . . 2 Damage Taken 1190 | . 88 628 474 Core 286 | . . 116 170 Absorbed by Shields . | . . . . Core Remaining (%) 100 | 100 . . . Volleys Fired 56 | 9 3 37 7 Largest 2 | 2 2 2 2 Hottest 53 | 40 40 53 33 Shots Fired 104 | 18 6 70 10 Gun 92 | 18 6 66 2 Cannon . | . . . . Launcher 7 | . . 4 3 Special 5 | . . . 5 Kinetic 92 | 18 6 66 2 Thermal . | . . . . Explosive 7 | . . 4 3 Electromagnetic . | . . . . Robot Hit Streak 10 | 8 4 10 6 Robot Miss Streak 4 | 1 1 4 2 Penetration Max . | . . . . Secondary Targets 2 | . . 2 . Max Gunslinging Chain 1 | . . 1 . Shots Hit Robots 64 | 13 4 41 6 Core Hits 32 | 5 2 19 6 Critical Kills 1 | 1 . . . Critical Parts Destroyed 1 | . . 1 . Critical Strikes 2 | 1 . 1 . Destroy 2 | 1 . 1 . Melee Attacks . | . . . . Impact . | . . . . Slashing . | . . . . Piercing . | . . . . Sneak Attacks . | . . . . Combat Hostiles . | . . . . Follow-up Attacks . | . . . . Damage Inflicted 1213 | 136 49 861 167 Guns 794 | 136 49 583 26 Cannons . | . . . . Explosions 417 | . . 278 139 Melee . | . . . . Ramming 2 | . . . 2 Kinetic 794 | 136 49 583 26 Thermal . | . . . . Explosive 417 | . . 278 139 Electromagnetic . | . . . . Impact . | . . . . Slashing . | . . . . Piercing . | . . . . Highest Corruption 5 | . . . 5 Average Corruption 5 | . . . 5 Corruption Purged . | . . . . Corruption Blocked . | . . . . Effects 1 | . . . 1 Message Errors 1 | . . . 1 Overload Shots . | . . . . Overflow Damage 13 | . . 13 . Projectiles . | . . . . Explosions 13 | . . 13 . Melee . | . . . . Knockbacks . | . . . . Impact . | . . . . Kinetic . | . . . . Secondary . | . . . . Self-Inflicted Damage 134 | . . 77 57 Shots 5 | . . 3 2 Rammed . | . . . . Targets Rammed 1 | . . . 1 Kicked 1 | . . . 1 Crushed . | . . . . Highest Temperature 8 | . . . 8 Average Temperature 4 | . . . 4 Received Heat Transfer 200 | . . 120 80 Siege Activations . | . . . . Martial Activations . | . . . . Shielding Activations . | . . . . Robots Disrupted . | . . . . Combat Hostiles . | . . . . Robots Corrupted . | . . . . Combat Hostiles . | . . . . Parts Fried . | . . . . Impact Corruptions . | . . . . Robots Melted . | . . . . Combat Hostiles . | . . . . Parts Melted . | . . . . Heat Transferred . | . . . . Parts Sabotaged . | . . . . Parts Stolen . | . . . . Parts Stripped . | . . . . Power Chain Reactions . | . . . . Alert | -11 -10 -10 -10 ------- Run | Yrd Mat Min Exi Maximum Alert Level . | . . . . Low Security (%) 100 | 100 100 100 . Level 1 . | . . . . Level 2 . | . . . . Level 3 . | . . . . Level 4 . | . . . . Level 5 . | . . . . High Security . | . . . . Max Security . | . . . . Peak Influence 142 | 5 7 142 . Initial . | . . . . Average 27 | . . 33 . Influence Increases 393 | 20 7 366 . Destroy 0b10 Robot/C 280 | . . 280 . Destroy 0b10 Robot/NC 30 | 20 5 5 . Destroy Leader 22 | . 2 20 . Destroy Structure 31 | . . 31 . Lose Combat Pursuer 30 | . . 30 . Influence Decreases 393 | 20 7 268 98 Entered New Map 98 | . . . 98 Time Decay 265 | 20 7 238 . Lost Part 30 | . . 30 . Squads Dispatched . | . . . . Investigation . | . . . . Extermination . | . . . . Reinforcement . | . . . . Assault . | . . . . Garrison . | . . . . Intercept . | . . . . Searches Triggered . | . . . . Construction Impeded . | . . . . Haulers Reinforced . | . . . . Active Scanning Responses . | . . . . Cargo Convoy Interrupts . | . . . . Stealth | -11 -10 -10 -10 --------- Run | Yrd Mat Min Exi Distress Signals . | . . . . Communications Jammed . | . . . . Distress Signals . | . . . . Times Spotted 28 | . 3 17 8 Peak Tracking Total 9 | . 3 3 9 Tactical Retreats 2 | . . 2 . Traps | -11 -10 -10 -10 ------- Run | Yrd Mat Min Exi Traps Triggered . | . . . . Indirectly . | . . . . Trap Hack Attempts . | . . . . Triggered . | . . . . Disarmed . | . . . . Reprogrammed . | . . . . Reused . | . . . . Traps Extracted . | . . . . Installed . | . . . . Triggered . | . . . . Machines | -11 -10 -10 -10 ---------- Run | Yrd Mat Min Exi Machines Disabled 5 | . . . 5 Max in Single Turn 2 | . . . 2 Machines Repaired . | . . . . Machines Dismantled . | . . . . Machines Sabotaged . | . . . . Overloaded Fab Kills . | . . . . Hacking | -11 -10 -10 -10 --------- Run | Yrd Mat Min Exi Machines Accessed 3 | . 1 1 1 Terminals 1 | . 1 . . Fabricators . | . . . . Repair Stations . | . . . . Recycling Units . | . . . . Scanalyzers . | . . . . Garrison Access . | . . . . Total Hacks 3 | . 1 1 1 Successful 3 | . 1 1 1 Failed . | . . . . Catastrophic . | . . . . Database Lockouts . | . . . . Manual 3 | . 1 . 2 Terminals 1 | . 1 . . Fabricators . | . . . . Repair Stations . | . . . . Recycling Units . | . . . . Scanalyzers . | . . . . Garrison Access . | . . . . Terminal Hacks 3 | . 1 1 1 Robot Analysis 1 | . 1 . . Open Door 1 | . . 1 . Proto ID Catalog 1 | . . . 1 Fabricator Hacks . | . . . . Repair Station Hacks . | . . . . Recycling Unit Hacks . | . . . . Scanalyzer . | . . . . Garrison Access Hacks . | . . . . Unauthorized Hacks . | . . . . Terminals . | . . . . Fabricators . | . . . . Repair Stations . | . . . . Recycling Units . | . . . . Scanalyzers . | . . . . Garrison Access . | . . . . Data Cores Recovered . | . . . . Used . | . . . . Hacking Detections . | . . . . Full Trace Events . | . . . . Feedback Events . | . . . . Feedback Blocked . | . . . . Robot Schematics Acquired . | . . . . Robots Built . | . . . . Authchips . | . . . . Time . | . . . . Total Robot Build Rating . | . . . . Part Schematics Acquired . | . . . . Parts Built . | . . . . Authchips . | . . . . Time . | . . . . Total Part Build Rating . | . . . . Parts Repaired . | . . . . Time . | . . . . Parts Recycled . | . . . . Recycled Matter . | . . . . Retrieved Matter . | . . . . Retrieved Components . | . . . . Parts Scanalyzed . | . . . . Part Schematics Acquired . | . . . . Parts Damaged . | . . . . Bothacking | -11 -10 -10 -10 ------------ Run | Yrd Mat Min Exi Used RIF Installer . | . . . . Robots Hacked . | . . . . Non-combat . | . . . . Combat . | . . . . Robot Hacks Applied . | . . . . Relay Couplers Released . | . . . . Fabnet Peak Effective % . | . . . . Robots Rewired . | . . . . Allies Hacked . | . . . . Hacks Repelled . | . . . . Allies | -11 -10 -10 -10 -------- Run | Yrd Mat Min Exi Total Allies 3 | . . . 3 Largest Group 2 | . . . 2 Highest-Rated Group 18 | . . . 18 Highest-Rated Ally 9 | . . . 9 Total Orders . | . . . . Ally Attacks 16 | . . . 16 Total Damage 183 | . . . 183 Kills 2 | . . . 2 Allies Corrupted . | . . . . Allies Melted . | . . . . Field Lobotomies 3 | . . . 3 Intel | -11 -10 -10 -10 ------- Run | Yrd Mat Min Exi Active Infowar (turns) 1429 | 54 153 1222 . Seismic 1429 | 54 153 1222 . Robot Analysis Total 1 | . 1 . . Derelict Logs Recovered 1 | . . 1 . Drone Launches 20 | . . 20 . Drone Recoveries 1 | . . . 1 Exploration | -11 -10 -10 -10 ------------- Run | Yrd Mat Min Exi Turns Passed 2459 | 183 153 1547 576 Spaces Moved 889 | 90 88 400 311 Core 44 | 5 . . 39 Treads 366 | 85 88 193 . Legs 479 | . . 207 272 Wheels . | . . . . Hover . | . . . . Flight . | . . . . Fastest Speed 50 | 50 160 120 50 Average Speed 160 | 153 160 151 173 Slowest Speed 300 | 160 160 190 300 Overloaded Moves . | . . . . Propulsion Burnouts . | . . . . Robots Hopped . | . . . . Potential Cave-ins . | . . . . Cave-ins Triggered . | . . . . Exploration Rate (%) 40 | 6 26 69 61 Regions Visited 3 Branch Regions 2 Pre-discovered Areas . | . . . . Known Exits Taken 1 | . . 1 . Unknown Exits Taken 2 | 1 1 . . Scrap Searched . | . . . . Spaces Dug . | . . . . Terrain Destroyed 59 | . . 50 9 Melee . | . . . . Projectile . | . . . . AOE 59 | . . 50 9 Terrain Rammed . | . . . . Walls Destroyed . | . . . . Machines Disabled . | . . . . Actions | -11 -10 -10 -10 --------- Run | Yrd Mat Min Exi Total 1814 | 116 95 1271 332 Wait 814 | . . 814 . Move 886 | 89 87 399 311 Hop . | . . . . Pick Up 18 | 9 2 4 3 Fast Attach 10 | 7 . 1 2 Attach 3 | . . 2 1 Detach . | . . . . Swap 11 | . 1 8 2 Drop 15 | 2 2 6 5 Fire 56 | 9 3 37 7 Melee . | . . . . Ram . | . . . . Kick 1 | . . . 1 Crush . | . . . . Escape Stasis . | . . . . Rewire . | . . . . Trap . | . . . . Miscellaneous . | . . . . Route ------- -11/Scrapyard -10/Materials -10/Mines (discovered 2 exits: *Exi / [*Sub]) -10/Exiles (discovered 2 exits: *Min x2) History --------- Turn | Location | Event 5 | -11/Scrapyard | Discovered new exit (range 14) 184 | -11/Scrapyard | Entered Materials 316 | -10/Materials | Discovered new exit (range 11) 318 | -10/Materials | Build established: Mutant 337 | -10/Materials | Entered Mines 346 | -10/Mines | Met a Derelict bent on vengeance 402 | -10/Mines | Discovered new exit (range 12) 609 | -10/Mines | Excavation squad dispatched 609 | -10/Mines | A large section of the Mines collapsed 859 | -10/Mines | Excavation squad dispatched 1109 | -10/Mines | Excavation squad dispatched 1527 | -10/Mines | Received a Rocket Launcher from a helpful Derelict 1689 | -10/Mines | Found the Drone Emporium 1697 | -10/Mines | Found Prototype Device 1697 | -10/Mines | Identified Sensor Drone Bay 1869 | -10/Mines | Deemed a non-threat by the Exiles lab entrance 1869 | -10/Mines | Discovered new exit (range 5) 1884 | -10/Mines | Identified exit to Exiles 1884 | -10/Mines | Entered Exiles 1884 | -10/Exiles | Accompanied by 11 allies 1885 | -10/Exiles | Identified exit to Mines 1930 | -10/Exiles | Met 8R-AWN 1962 | -10/Exiles | Met EX-HEX 2078 | -10/Exiles | Met EX-DEC 2123 | -10/Exiles | Met EX-BIN 2255 | -10/Exiles | Aligned with FarCom system 2256 | -10/Exiles | Given EX-Vault access code 2302 | -10/Exiles | Opened EX-Vault 2323 | -10/Exiles | Found Field Lobotomy Kit 2360 | -10/Exiles | Warned to stay clear of 0b10 Research branches 2393 | -10/Exiles | Attacked by the Exiles 2393 | -10/Exiles | Core integrity fell below 50% 2396 | -10/Exiles | Destroyed EX-BIN 2409 | -10/Exiles | Assimilated as-97865 with FLK Orb 2418 | -10/Exiles | Assimilated as-93284 with FLK Orb 2421 | -10/Exiles | Assimilated as-51607 with FLK Orb 2443 | -10/Exiles | Core integrity fell below 20% 2460 | -10/Exiles | Destroyed by DAS Turret with DAS Cannon Last Messages --------------- 02442_ Penetrated by HV Slug. 02442_ Assault Rifle destroyed. 02442_ HV Slug penetrates Machine. 02442_ Penetrated by HV Slug. 02442_ HV Slug penetrates Machine. 02444_ HV Slug penetrates Wall. 02444_ Penetrated by HV Slug. 02444_ HV Slug penetrates Wall. 02446_ Acquired EX Chip 1. 02448_ Dropped Wheel. 02448_ Acquired EX Chip 2. 02451_ HV Slug penetrates Machine. 02451_ HV Slug penetrates Wall. 02451_ Penetrated by HV Slug. 02451_ HV Slug penetrates Machine. 02454_ HV Slug penetrates Sensor Drone. 02454_ Sensor Drone suffers critical hit (Destroy). 02454_ Sensor Drone destroyed. 02454_ HV Slug penetrates Sensor Drone. 02458_ JHRKA4 U GK# 65TGIOGL7GLIM34N6ZEL21EB Map ----- +----------------------------------------------------+ | ????????????????????????????#" #??????? | | ????????????????????????????#" ## #??????? | | ????????????????????????????#""""""?# #?###### | | ????????????????????????????##"####?# #?#""""" | | ???????????????????????????? ??????# #?#""""" | | ???????????????????????????""??????## #?#" """ | | ???????????????????????????????????#" ###" "" | | ???????????????????????????????????# " | | ???????????????????????????????????#" | | ???????????????????????????????????#" | | ???????????????????????????????????#" | | ??????????????????????##???????????#" | | | ?????????????????????? ???????????#" ! | | ??????????????????????" ???????????## != ! " | | ??????????????????????" ???????????# %!% % " | | ?????????????????????"" ???????????# % " | | ?????????????????????"" ???????????# = "" | | ????????????????????? ???????????# " | | ??????????????????????" ??????????##" % ### | | ??????????????????????# ?????????##"" %#######? | | ????????????????????### ###?######" % #??????? | | ??????????? """#####X# #"###"" """" ##?????? | | ??????????? """"" ##???## | | ?????????? "" " #####" | | ?????????? " " | | ?????????? @ | | ???????????# | | ????????????# | | ????????????## | | ?????????????##" | | ??????????????#""" """""" | | ?????????????##" ######"" | | ?????????????#"" ""##????#####""" | | ?????????????#""" """##??????????#""" | | ????????????#""" """##???????????#"""" | | ????????????#""" ""#???????????##"" | | ????????????#"" ########??####"""" | | ????????????#""" ## ####""" | | ????????????#"" """" | | ????????????##"" | | ?????????????#"""" | | ?????????????## | | ??????????????#" " "" | | ??????????????#"""" ""## ##""" " " | | ??????????????#"" ""#### ######""" | | ??????????????#" """"##??# #????###"" | | ??????????????#""" """#??## ####???### | | ??????????????## ""##??#! "!#?????? | | ???????????????#"" """##???#" !#?????? | | ???????????????##""" ##????#" "#?????? | +----------------------------------------------------+ Best States ------------- Heat Dissipation 25 Energy Generation 10 Energy Capacity 250 Matter Stores 294 Matter Capacity 300 Sight Range 16 Terrain Scan Density 10 Evasion (%) 55 Recoil Reduction 2 Offensive Hacking 14 Item Schematics ----------------- None Robot Schematics ------------------ None Fabricated ------------ Nothing Repaired ---------- Nothing Alien Tech Used ----------------- None Achievements -------------- Release The Drones! Challenges ------------ None Game ------ Seed UtilityAdvancedCompanion Manual? 0 Play Time 00:11:00 Cumulative 95.7 hours Start 2025.05.15 @ 21:23:23 End 2025.05.15 @ 21:31:45 Sessions 1 Manual Loads 0 Difficulty Rogue Special Mode None Game No. 242 Rogue 242 Adventurer 0 Explorer 0 Win Type - Total 2 Types 2/0/0/0/0/0/0/0/0/0 Lore% 43 Gallery% 48 Achievement% 39 Wizard Run 0 Options --------- Layout 0 ASCII 0 Keyboard 0 Movement Numpad Keybinds 0 Fullscreen 2 Font 18/Terminus Map View 76x50 Zoom Use 0% Tactical HUD 1 Map Filters NONE Filters NONE Steam 1 RUN: b9b85257-efea-4aeb-9922-69d0bb480ff7